[Event "Internationales Werder Bremen IM-Turnier"]
[Site "SV Werder Bremen, Clubräume in der Hemelinger Straße 17, Germany"]
[Date "2018.06.16"]
[Round "1.3"]
[White "Wachinger, Nikolas"]
[Black "Charmeteau, Sven"]
[Result "1-0"]
[TimeControl "90 Minuten/40 Züge + 30 Minuten/Rest + 30 Sekunden ab dem ersten Zug"]
[BlackTitle "FM"]
[WhiteFideId "12962791"]
[BlackFideId "638285"]
[WhiteElo "2292"]
[BlackElo "2287"]

1. e4 {[%clk 01:30:56]} {[%emt 00:00:02]} c5 {[%clk 01:30:41]} {[%emt
00:00:19]} 2. Nc3 {[%clk 01:31:14]} {[%emt 00:00:12]} a6 {[%clk 01:28:51]}
{[%emt 00:02:21]} 3. g3 {[%clk 01:29:20]} {[%emt 00:02:24]} b5 {[%clk
01:28:25]} {[%emt 00:00:55]} 4. Bg2 {[%clk 01:28:57]} {[%emt 00:00:52]} Bb7
{[%clk 01:28:49]} {[%emt 00:00:06]} 5. d3 {[%clk 01:28:16]} {[%emt 00:01:11]}
e6 {[%clk 01:27:26]} {[%emt 00:01:53]} 6. f4 {[%clk 01:28:03]} {[%emt
00:00:43]} d5 {[%clk 01:22:15]} {[%emt 00:05:41]} 7. f5 {[%clk 01:28:01]}
{[%emt 00:00:32]} b4 {[%clk 00:45:43]} {[%emt 00:37:02]} 8. Nce2 {[%clk
00:55:12]} {[%emt 00:33:19]} dxe4 {[%clk 00:25:49]} {[%emt 00:20:25]} 9. fxe6
{[%clk 00:54:47]} {[%emt 00:00:54]} f5 {[%clk 00:25:56]} {[%emt 00:00:23]} 10.
Nh3 {[%clk 00:45:41]} {[%emt 00:09:37]} Be7 {[%clk 00:26:04]} {[%emt 00:00:22]}
11. O-O {[%clk 00:45:01]} {[%emt 00:01:09]} g6 {[%clk 00:26:11]} {[%emt
00:00:23]} 12. Nf2 {[%clk 00:42:55]} {[%emt 00:02:36]} Nf6 {[%clk 00:17:30]}
{[%emt 00:09:11]} 13. Bh6 {[%clk 00:41:13]} {[%emt 00:02:11]} Qb6 {[%clk
00:06:00]} {[%emt 00:12:00]} 14. Bg7 {[%clk 00:35:21]} {[%emt 00:06:22]} Rg8
{[%clk 00:06:24]} {[%emt 00:00:07]} 15. Bxf6 {[%clk 00:35:46]} {[%emt
00:00:05]} Bxf6 {[%clk 00:05:58]} {[%emt 00:00:56]} 16. dxe4 {[%clk 00:36:09]}
{[%emt 00:00:07]} Bxb2 {[%clk 00:03:53]} {[%emt 00:02:35]} 17. Rb1 {[%clk
00:36:19]} {[%emt 00:00:19]} Be5 {[%clk 00:03:15]} {[%emt 00:01:08]} 18. exf5
{[%clk 00:36:17]} {[%emt 00:00:32]} Bxg2 {[%clk 00:02:07]} {[%emt 00:01:38]} 19.
Kxg2 {[%clk 00:36:37]} {[%emt 00:00:10]} gxf5 {[%clk 00:02:03]} {[%emt
00:00:34]} 20. Nf4 {[%clk 00:36:08]} {[%emt 00:00:58]} Bxf4 {[%clk 00:01:26]}
{[%emt 00:01:08]} 21. Qh5+ {[%clk 00:36:08]} {[%emt 00:00:30]} Kd8 {[%clk
00:01:43]} {[%emt 00:00:13]} 22. Rbd1+ {[%clk 00:35:33]} {[%emt 00:01:04]} Kc8
{[%clk 00:01:12]} {[%emt 00:01:02]} 23. Qxf5 {[%clk 00:34:59]} {[%emt
00:01:03]} Bc7 {[%clk 00:00:41]} {[%emt 00:01:01]} 24. Ne4 {[%clk 00:33:31]}
{[%emt 00:01:59]} Kb7 {[%clk 00:00:57]} {[%emt 00:00:14]} 25. e7 {[%clk
00:26:51]} {[%emt 00:07:09]} Nc6 {[%clk 00:00:39]} {[%emt 00:00:47]} 26. Rd7
{[%clk 00:25:53]} {[%emt 00:01:29]} Nd4 {[%clk 00:00:38]} {[%emt 00:00:31]} 27.
Nxc5+ {[%clk 00:26:07]} {[%emt 00:00:16]} 1-0

[Event "Internationales Werder Bremen IM-Turnier"]
[Site "SV Werder Bremen, Clubräume in der Hemelinger Straße 17, Germany"]
[Date "2018.06.16"]
[Round "1.2"]
[White "Kardoeus, David"]
[Black "Osmanodja, Filiz"]
[Result "0-1"]
[TimeControl "90 Minuten/40 Züge + 30 Minuten/Rest + 30 Sekunden ab dem ersten Zug"]
[BlackTitle "WIM"]
[WhiteFideId "12912050"]
[BlackFideId "24633569"]
[WhiteElo "2226"]
[BlackElo "2352"]

1. e4 {[%clk 01:30:44]} {[%emt 00:00:13]} c5 {[%clk 01:30:58]} {[%emt
00:00:05]} 2. Nf3 {[%clk 01:31:01]} {[%emt 00:00:12]} d6 {[%clk 01:31:22]}
{[%emt 00:00:07]} 3. d4 {[%clk 01:31:25]} {[%emt 00:00:06]} cxd4 {[%clk
01:31:50]} {[%emt 00:00:02]} 4. Nxd4 {[%clk 01:31:46]} {[%emt 00:00:08]} Nf6
{[%clk 01:32:17]} {[%emt 00:00:03]} 5. Nc3 {[%clk 01:31:58]} {[%emt 00:00:17]}
Nc6 {[%clk 01:32:38]} {[%emt 00:00:10]} 6. Bg5 {[%clk 01:32:06]} {[%emt
00:00:22]} e6 {[%clk 01:33:02]} {[%emt 00:00:07]} 7. Qd2 {[%clk 01:32:25]}
{[%emt 00:00:10]} Be7 {[%clk 01:33:30]} {[%emt 00:00:03]} 8. O-O-O {[%clk
01:32:42]} {[%emt 00:00:13]} O-O {[%clk 01:32:09]} {[%emt 00:01:52]} 9. h4
{[%clk 01:32:53]} {[%emt 00:00:17]} Nxd4 {[%clk 01:29:35]} {[%emt 00:03:04]} 10.
Qxd4 {[%clk 01:33:13]} {[%emt 00:00:10]} Qa5 {[%clk 01:29:40]} {[%emt
00:00:26]} 11. Kb1 {[%clk 01:30:23]} {[%emt 00:03:20]} Bd7 {[%clk 01:25:44]}
{[%emt 00:04:27]} 12. Qd2 {[%clk 01:30:16]} {[%emt 00:00:36]} Kh8 {[%clk
01:23:15]} {[%emt 00:02:59]} 13. f4 {[%clk 01:06:18]} {[%emt 00:24:27]} Bc6
{[%clk 01:17:26]} {[%emt 00:06:19]} 14. Rh3 {[%clk 01:01:01]} {[%emt 00:05:47]}
Rfd8 {[%clk 01:15:25]} {[%emt 00:02:33]} 15. Bd3 {[%clk 00:55:19]} {[%emt
00:06:12]} Rac8 {[%clk 01:12:08]} {[%emt 00:03:47]} 16. Qe2 {[%clk 00:48:59]}
{[%emt 00:06:49]} e5 {[%clk 01:02:51]} {[%emt 00:09:48]} 17. Bc4 {[%clk
00:37:47]} {[%emt 00:11:42]} exf4 {[%clk 00:54:33]} {[%emt 00:08:48]} 18. Bxf4
{[%clk 00:33:53]} {[%emt 00:04:23]} Bd7 {[%clk 00:50:51]} {[%emt 00:04:13]} 19.
Bxf7 {[%clk 00:23:01]} {[%emt 00:11:22]} Bxh3 {[%clk 00:47:58]} {[%emt
00:03:23]} 20. gxh3 {[%clk 00:23:29]} {[%emt 00:00:01]} Rf8 {[%clk 00:38:48]}
{[%emt 00:09:41]} 21. Be6 {[%clk 00:23:17]} {[%emt 00:00:40]} Rce8 {[%clk
00:33:19]} {[%emt 00:06:01]} 22. Nd5 {[%clk 00:17:19]} {[%emt 00:06:27]} Nxd5
{[%clk 00:27:44]} {[%emt 00:06:05]} 23. Rxd5 {[%clk 00:17:40]} {[%emt
00:00:09]} Qa6 {[%clk 00:25:09]} {[%emt 00:03:06]} 24. Qh5 {[%clk 00:14:48]}
{[%emt 00:03:21]} Rxf4 {[%clk 00:16:47]} {[%emt 00:08:53]} 25. Qxe8 {[%clk
00:15:03]} {[%emt 00:00:14]} Rf8 {[%clk 00:17:07]} {[%emt 00:00:11]} 26. Qh5
{[%clk 00:14:24]} {[%emt 00:01:09]} g6 {[%clk 00:17:01]} {[%emt 00:00:36]} 27.
Qg4 {[%clk 00:11:57]} {[%emt 00:02:57]} Rf1+ {[%clk 00:17:09]} {[%emt
00:00:22]} 28. Rd1 {[%clk 00:12:21]} {[%emt 00:00:06]} h5 {[%clk 00:17:29]}
{[%emt 00:00:10]} 0-1

[Event "Internationales Werder Bremen IM-Turnier"]
[Site "SV Werder Bremen, Clubräume in der Hemelinger Straße 17, Germany"]
[Date "2018.06.16"]
[Round "1.1"]
[White "Molchanov, Oleksii"]
[Black "Grigorian, Spartak"]
[Result "1/2-1/2"]
[TimeControl "90 Minuten/40 Züge + 30 Minuten/Rest + 30 Sekunden ab dem ersten Zug"]
[WhiteTitle "FM"]
[WhiteFideId "14119820"]
[BlackFideId "24661490"]
[WhiteElo "2350"]
[BlackElo "2359"]

1. Nf3 {[%clk 01:30:39]} {[%emt 00:00:19]} d5 {[%clk 01:30:52]} {[%emt
00:00:09]} 2. e3 {[%clk 01:30:55]} {[%emt 00:00:14]} Nf6 {[%clk 01:31:04]}
{[%emt 00:00:18]} 3. c4 {[%clk 01:31:11]} {[%emt 00:00:14]} e6 {[%clk
01:31:23]} {[%emt 00:00:11]} 4. b3 {[%clk 01:31:07]} {[%emt 00:00:35]} c5
{[%clk 01:30:45]} {[%emt 00:01:09]} 5. Bb2 {[%clk 01:29:12]} {[%emt 00:02:24]}
Nc6 {[%clk 01:30:12]} {[%emt 00:01:03]} 6. cxd5 {[%clk 01:28:05]} {[%emt
00:01:36]} exd5 {[%clk 01:30:39]} {[%emt 00:00:04]} 7. Be2 {[%clk 01:27:35]}
{[%emt 00:00:59]} Bd6 {[%clk 01:25:26]} {[%emt 00:05:43]} 8. Nc3 {[%clk
01:25:22]} {[%emt 00:02:44]} O-O {[%clk 01:22:18]} {[%emt 00:03:37]} 9. d4
{[%clk 01:24:05]} {[%emt 00:01:47]} cxd4 {[%clk 01:16:47]} {[%emt 00:06:01]} 10.
Nxd4 {[%clk 01:24:06]} {[%emt 00:00:28]} Re8 {[%clk 01:16:48]} {[%emt
00:00:29]} 11. O-O {[%clk 01:21:37]} {[%emt 00:02:59]} Nxd4 {[%clk 00:49:51]}
{[%emt 00:27:27]} 12. Qxd4 {[%clk 01:21:38]} {[%emt 00:00:29]} Be5 {[%clk
00:50:16]} {[%emt 00:00:06]} 13. Qd3 {[%clk 01:13:42]} {[%emt 00:08:26]} Ne4
{[%clk 00:43:39]} {[%emt 00:07:06]} 14. Rad1 {[%clk 00:53:34]} {[%emt
00:20:38]} Bf5 {[%clk 00:37:21]} {[%emt 00:06:48]} 15. Nxe4 {[%clk 00:50:06]}
{[%emt 00:03:59]} Bxe4 {[%clk 00:34:21]} {[%emt 00:03:30]} 16. Qd2 {[%clk
00:50:03]} {[%emt 00:00:33]} Bxh2+ {[%clk 00:20:56]} {[%emt 00:13:56]} 17. Kxh2
{[%clk 00:49:29]} {[%emt 00:01:03]} Qh4 {[%clk 00:21:17]} {[%emt 00:00:09]} 18.
Kg1 {[%clk 00:49:52]} {[%emt 00:00:06]} Bxg2 {[%clk 00:21:13]} {[%emt
00:00:35]} 19. Kxg2 {[%clk 00:30:37]} {[%emt 00:19:44]} Re6 {[%clk 00:21:30]}
{[%emt 00:00:14]} 20. Rh1 {[%clk 00:30:34]} {[%emt 00:00:33]} Rg6+ {[%clk
00:20:27]} {[%emt 00:01:33]} 21. Bg4 {[%clk 00:30:53]} {[%emt 00:00:12]} Qxg4+
{[%clk 00:18:16]} {[%emt 00:02:41]} 22. Kf1 {[%clk 00:30:14]} {[%emt 00:01:08]}
Rc8 {[%clk 00:12:36]} {[%emt 00:06:11]} 23. Ke1 {[%clk 00:25:03]} {[%emt
00:05:41]} Rg5 {[%clk 00:10:35]} {[%emt 00:02:30]} 24. Qd4 {[%clk 00:22:28]}
{[%emt 00:03:05]} Qg2 {[%clk 00:07:33]} {[%emt 00:03:32]} 25. Qh4 {[%clk
00:21:19]} {[%emt 00:01:39]} h6 {[%clk 00:08:01]} {[%emt 00:00:03]} 26. Rf1
{[%clk 00:15:21]} {[%emt 00:06:27]} Rc2 {[%clk 00:07:53]} {[%emt 00:00:37]} 27.
Bc1 {[%clk 00:12:14]} {[%emt 00:03:38]} Rxa2 {[%clk 00:02:29]} {[%emt
00:05:55]} 28. Bd2 {[%clk 00:12:37]} {[%emt 00:00:06]} d4 {[%clk 00:01:41]}
{[%emt 00:01:18]} 29. Qxd4 {[%clk 00:11:41]} {[%emt 00:01:26]} Rd5 {[%clk
00:02:09]} {[%emt 00:00:01]} 30. Qc4 {[%clk 00:09:24]} {[%emt 00:02:47]} b5
{[%clk 00:01:30]} {[%emt 00:01:10]} 31. Qe2 {[%clk 00:08:40]} {[%emt 00:01:13]}
Qe4 {[%clk 00:01:11]} {[%emt 00:00:48]} 32. f3 {[%clk 00:08:12]} {[%emt
00:00:59]} Qc2 {[%clk 00:01:24]} {[%emt 00:00:15]} 33. e4 {[%clk 00:05:45]}
{[%emt 00:02:58]} Rd3 {[%clk 00:01:37]} {[%emt 00:00:18]} 34. e5 {[%clk
00:05:24]} {[%emt 00:00:51]} Qxb3 {[%clk 00:01:42]} {[%emt 00:00:25]} 35. Qe4
{[%clk 00:04:47]} {[%emt 00:01:07]} Raxd2 {[%clk 00:01:43]} {[%emt 00:00:29]}
36. Qa8+ {[%clk 00:02:44]} {[%emt 00:02:33]} Kh7 {[%clk 00:02:12]} {[%emt
00:00:01]} 37. Rxd2 {[%clk 00:01:48]} {[%emt 00:01:25]} Qb1+ {[%clk 00:02:37]}
{[%emt 00:00:04]} 38. Ke2 {[%clk 00:02:08]} {[%emt 00:00:10]} Rxd2+ {[%clk
00:03:04]} {[%emt 00:00:03]} 39. Kxd2 {[%clk 00:02:33]} {[%emt 00:00:05]} Qxf1
{[%clk 00:03:31]} {[%emt 00:00:03]} 40. Qe4 {[%clk 00:02:18]} {[%emt 00:00:44]}
Kh8 {[%clk 00:02:49]} {[%emt 00:01:12]} 41. Qa8 {[%clk 00:29:12]} {[%emt
00:03:36]} Kh7 {[%clk 00:33:12]} {[%emt 00:00:07]} 42. Qe4 {[%clk 00:29:38]}
{[%emt 00:00:04]} g6 {[%clk 00:33:21]} {[%emt 00:00:21]} 43. e6 {[%clk
00:29:20]} {[%emt 00:00:48]} Qf2+ {[%clk 00:31:50]} {[%emt 00:02:01]} 44. Kd3
{[%clk 00:28:36]} {[%emt 00:01:14]} fxe6 {[%clk 00:32:12]} {[%emt 00:00:08]} 45.
Qb7 {[%clk 00:28:37]} {[%emt 00:00:28]} Kg8 {[%clk 00:32:27]} {[%emt 00:00:15]}
46. Qc8+ {[%clk 00:28:07]} {[%emt 00:01:00]} Kf7 {[%clk 00:32:44]} {[%emt
00:00:12]} 47. Qc7+ {[%clk 00:28:26]} {[%emt 00:00:12]} Ke8 {[%clk 00:30:42]}
{[%emt 00:02:31]} 48. Qc8+ {[%clk 00:28:47]} {[%emt 00:00:10]} Ke7 {[%clk
00:31:08]} {[%emt 00:00:04]} 49. Qc7+ {[%clk 00:29:12]} {[%emt 00:00:05]} Kf6
{[%clk 00:31:35]} {[%emt 00:00:02]} 50. Qf4+ {[%clk 00:29:37]} {[%emt
00:00:07]} Ke5 {[%emt 00:00:42]} 51. Ke4+ {[%emt 00:00:01]} 1/2-1/2

[Event "Internationales Werder Bremen IM-Turnier"]
[Site "SV Werder Bremen, Clubräume in der Hemelinger Straße 17, Germany"]
[Date "2018.06.16"]
[Round "1.4"]
[White "Reuker, Jari"]
[Black "Ahlander, Björn"]
[Result "0-1"]
[TimeControl "90 Minuten/40 Züge + 30 Minuten/Rest + 30 Sekunden ab dem ersten Zug"]
[BlackTitle "IM"]
[WhiteFideId "12909300"]
[BlackFideId "1700251"]
[WhiteElo "2389"]
[BlackElo "2435"]

1. d4 {[%clk 01:30:56]} {[%emt 00:00:03]} Nf6 {[%clk 01:30:35]} {[%emt
00:00:25]} 2. c4 {[%clk 01:31:19]} {[%emt 00:00:07]} e6 {[%clk 01:30:57]}
{[%emt 00:00:07]} 3. Nc3 {[%clk 01:31:39]} {[%emt 00:00:10]} d5 {[%clk
01:30:06]} {[%emt 00:01:21]} 4. cxd5 {[%clk 01:31:55]} {[%emt 00:00:14]} Nxd5
{[%clk 01:29:42]} {[%emt 00:00:56]} 5. e4 {[%clk 01:31:39]} {[%emt 00:00:46]}
Nxc3 {[%clk 01:30:04]} {[%emt 00:00:07]} 6. bxc3 {[%clk 01:32:04]} {[%emt
00:00:05]} c5 {[%clk 01:30:23]} {[%emt 00:00:11]} 7. Nf3 {[%clk 01:31:35]}
{[%emt 00:00:59]} cxd4 {[%clk 01:30:46]} {[%emt 00:00:08]} 8. cxd4 {[%clk
01:32:01]} {[%emt 00:00:04]} Bb4+ {[%clk 01:30:56]} {[%emt 00:00:19]} 9. Bd2
{[%clk 01:32:25]} {[%emt 00:00:06]} Bxd2+ {[%clk 01:31:20]} {[%emt 00:00:07]}
10. Qxd2 {[%clk 01:32:49]} {[%emt 00:00:05]} O-O {[%clk 01:31:38]} {[%emt
00:00:12]} 11. Bc4 {[%clk 01:31:19]} {[%emt 00:02:00]} Nd7 {[%clk 01:31:58]}
{[%emt 00:00:10]} 12. O-O {[%clk 01:28:29]} {[%emt 00:03:21]} b6 {[%clk
01:32:16]} {[%emt 00:00:12]} 13. Rad1 {[%clk 01:25:35]} {[%emt 00:03:24]} Bb7
{[%clk 01:32:30]} {[%emt 00:00:17]} 14. Rfe1 {[%clk 01:24:39]} {[%emt
00:01:25]} Re8 {[%clk 01:32:39]} {[%emt 00:00:20]} 15. Qf4 {[%clk 01:17:16]}
{[%emt 00:07:53]} Rc8 {[%clk 01:30:15]} {[%emt 00:02:53]} 16. Bb5 {[%clk
01:01:09]} {[%emt 00:16:38]} Re7 {[%clk 01:26:50]} {[%emt 00:03:55]} 17. Rc1
{[%clk 00:54:31]} {[%emt 00:07:09]} Rxc1 {[%clk 01:09:21]} {[%emt 00:17:59]} 18.
Rxc1 {[%clk 00:54:31]} {[%emt 00:00:30]} Nf6 {[%clk 01:09:29]} {[%emt
00:00:21]} 19. Bd3 {[%clk 00:40:37]} {[%emt 00:14:25]} h6 {[%clk 01:06:28]}
{[%emt 00:03:31]} 20. e5 {[%clk 00:37:20]} {[%emt 00:03:47]} Nd5 {[%clk
00:55:28]} {[%emt 00:11:30]} 21. Qe4 {[%clk 00:33:29]} {[%emt 00:04:20]} g6
{[%clk 00:54:59]} {[%emt 00:01:00]} 22. Qg4 {[%clk 00:30:05]} {[%emt 00:03:54]}
Rc7 {[%clk 00:43:56]} {[%emt 00:11:32]} 23. Re1 {[%clk 00:30:12]} {[%emt
00:00:23]} Kg7 {[%clk 00:37:36]} {[%emt 00:06:50]} 24. Be4 {[%clk 00:22:12]}
{[%emt 00:08:30]} Qe7 {[%clk 00:27:57]} {[%emt 00:10:09]} 25. h4 {[%clk
00:20:29]} {[%emt 00:02:13]} h5 {[%clk 00:27:20]} {[%emt 00:01:07]} 26. Qg3
{[%clk 00:15:07]} {[%emt 00:05:52]} Rc3 {[%clk 00:26:46]} {[%emt 00:01:04]} 27.
Rd1 {[%clk 00:13:31]} {[%emt 00:02:06]} b5 {[%clk 00:18:31]} {[%emt 00:08:46]}
28. Rd3 {[%clk 00:08:59]} {[%emt 00:05:02]} Rxd3 {[%clk 00:16:19]} {[%emt
00:02:42]} 29. Bxd3 {[%clk 00:09:24]} {[%emt 00:00:05]} Qa3 {[%clk 00:15:13]}
{[%emt 00:01:35]} 30. Ng5 {[%clk 00:06:23]} {[%emt 00:03:31]} Qc1+ {[%clk
00:12:12]} {[%emt 00:03:31]} 31. Kh2 {[%clk 00:06:42]} {[%emt 00:00:11]} Nf4
{[%clk 00:10:31]} {[%emt 00:02:11]} 32. Bxb5 {[%clk 00:03:54]} {[%emt
00:03:19]} Bxg2 {[%clk 00:09:48]} {[%emt 00:01:12]} 33. Qe3 {[%clk 00:02:47]}
{[%emt 00:01:37]} Qh1 {[%clk 00:09:27]} {[%emt 00:00:51]} 34. Kg3 {[%clk
00:03:15]} {[%emt 00:00:02]} Nd5 {[%clk 00:08:59]} {[%emt 00:00:58]} 35. Qd2
{[%clk 00:02:05]} {[%emt 00:01:41]} Qg1 {[%clk 00:08:29]} {[%emt 00:01:00]} 36.
Nh3 {[%clk 00:02:25]} {[%emt 00:00:09]} Bxh3+ {[%clk 00:06:12]} {[%emt
00:02:47]} 37. Kxh3 {[%clk 00:02:53]} {[%emt 00:00:02]} Qh1 {[%clk 00:05:19]}
{[%emt 00:01:23]} 38. Kg3 {[%clk 00:03:17]} {[%emt 00:00:06]} Qg1+ {[%clk
00:05:45]} {[%emt 00:00:04]} 39. Kh3 {[%clk 00:03:37]} {[%emt 00:00:09]} Qg4
{[%clk 00:06:09]} {[%emt 00:00:06]} 40. Kh2 {[%clk 00:04:04]} {[%emt 00:00:04]}
Qxh4 {[%clk 00:04:56]} {[%emt 00:01:44]} 41. Kg1 {[%clk 00:04:32]} Qg4+ {[%clk
00:04:43]} {[%emt 00:00:44]} 42. Kf1 {[%clk 00:04:36]} {[%emt 00:00:27]} Qe4
{[%clk 00:01:25]} {[%emt 00:03:47]} 43. Bc6 {[%clk 00:02:22]} {[%emt 00:02:45]}
Qh1+ {[%clk 00:24:47]} {[%emt 00:07:07]} 44. Ke2 {[%clk 00:32:18]} {[%emt
00:00:35]} Qe4+ {[%clk 00:24:33]} {[%emt 00:00:44]} 45. Kf1 {[%clk 00:32:19]}
{[%emt 00:00:29]} Qf3 {[%clk 00:23:20]} {[%emt 00:01:42]} 46. Ke1 {[%clk
00:26:34]} {[%emt 00:06:16]} h4 {[%clk 00:22:15]} {[%emt 00:01:36]} 47. Bxd5
{[%clk 00:26:46]} {[%emt 00:00:18]} exd5 {[%clk 00:21:59]} {[%emt 00:00:45]} 48.
Qg5 {[%clk 00:26:38]} {[%emt 00:00:38]} h3 {[%clk 00:20:40]} {[%emt 00:01:49]}
49. Qh4 {[%clk 00:25:51]} {[%emt 00:01:17]} Qe4+ {[%clk 00:19:53]} {[%emt
00:01:17]} 50. Qxe4 {[%clk 00:26:16]} {[%emt 00:00:06]} dxe4 {[%clk 00:20:18]}
{[%emt 00:00:05]} 51. Kf1 {[%clk 00:26:42]} {[%emt 00:00:03]} g5 {[%clk
00:19:43]} {[%emt 00:01:04]} 52. d5 {[%clk 00:27:08]} {[%emt 00:00:04]} Kf8
{[%clk 00:19:21]} {[%emt 00:00:52]} 53. Kg1 {[%clk 00:27:33]} {[%emt 00:00:05]}
g4 {[%clk 00:19:32]} {[%emt 00:00:19]} 54. Kh2 {[%clk 00:27:59]} {[%emt
00:00:04]} Ke7 {[%clk 00:19:36]} {[%emt 00:00:25]} 55. Kg3 {[%clk 00:28:21]}
{[%emt 00:00:09]} f6 {[%clk 00:18:18]} {[%emt 00:01:48]} 56. e6 {[%clk
00:28:38]} {[%emt 00:00:13]} Kd6 {[%clk 00:17:42]} {[%emt 00:01:06]} 0-1

[Event "Internationales Werder Bremen IM-Turnier"]
[Site "SV Werder Bremen, Clubräume in der Hemelinger Straße 17, Germany"]
[Date "2018.06.16"]
[Round "1.5"]
[White "Grabarczyk, Miroslav"]
[Black "Skliarov, Viktor"]
[Result "1/2-1/2"]
[TimeControl "90 Minuten/40 Züge + 30 Minuten/Rest + 30 Sekunden ab dem ersten Zug"]
[WhiteTitle "GM"]
[BlackTitle "IM"]
[WhiteFideId "1101684"]
[BlackFideId "14106736"]
[WhiteElo "2402"]
[BlackElo "2359"]

1. d4 {[%clk 01:30:56]} {[%emt 00:00:02]} Nf6 {[%clk 01:30:52]} {[%emt
00:00:09]} 2. c4 {[%clk 01:31:11]} {[%emt 00:00:15]} e6 {[%clk 01:31:14]}
{[%emt 00:00:08]} 3. Nf3 {[%clk 01:31:11]} {[%emt 00:00:29]} b6 {[%clk
01:31:35]} {[%emt 00:00:09]} 4. g3 {[%clk 01:31:27]} {[%emt 00:00:13]} Bb7
{[%clk 01:31:43]} {[%emt 00:00:23]} 5. Bg2 {[%clk 01:31:37]} {[%emt 00:00:19]}
Be7 {[%clk 01:32:08]} {[%emt 00:00:07]} 6. O-O {[%clk 01:31:20]} {[%emt
00:00:46]} O-O {[%clk 01:32:31]} {[%emt 00:00:07]} 7. Nc3 {[%clk 01:27:00]}
{[%emt 00:04:49]} Ne4 {[%clk 01:32:56]} {[%emt 00:00:07]} 8. Bd2 {[%clk
01:25:52]} {[%emt 00:01:38]} f5 {[%clk 01:32:08]} {[%emt 00:01:18]} 9. Rc1
{[%clk 01:20:11]} {[%emt 00:06:11]} Bf6 {[%clk 01:31:21]} {[%emt 00:01:17]} 10.
Qc2 {[%clk 01:18:36]} {[%emt 00:02:04]} Nxc3 {[%clk 01:18:55]} {[%emt
00:12:57]} 11. Bxc3 {[%clk 01:18:41]} {[%emt 00:00:24]} Be4 {[%clk 01:19:21]}
{[%emt 00:00:05]} 12. Qd2 {[%clk 01:16:25]} {[%emt 00:02:45]} d5 {[%clk
01:19:23]} {[%emt 00:00:29]} 13. b3 {[%clk 01:08:24]} {[%emt 00:08:31]} c6
{[%clk 01:11:09]} {[%emt 00:08:44]} 14. Rfd1 {[%clk 01:04:18]} {[%emt
00:04:36]} a5 {[%clk 01:07:33]} {[%emt 00:04:07]} 15. e3 {[%clk 00:55:40]}
{[%emt 00:09:07]} Qd7 {[%clk 00:58:13]} {[%emt 00:09:49]} 16. Qe2 {[%clk
00:52:12]} {[%emt 00:03:58]} Na6 {[%clk 00:54:11]} {[%emt 00:04:32]} 17. Bf1
{[%clk 00:47:57]} {[%emt 00:04:45]} Bxf3 {[%clk 00:54:17]} {[%emt 00:00:24]} 18.
Qxf3 {[%clk 00:48:20]} {[%emt 00:00:06]} Nc7 {[%clk 00:54:42]} {[%emt
00:00:06]} 19. Qe2 {[%clk 00:47:22]} {[%emt 00:01:27]} a4 {[%clk 00:39:38]}
{[%emt 00:15:34]} 20. Qc2 {[%clk 00:44:45]} {[%emt 00:03:07]} axb3 {[%clk
00:39:14]} {[%emt 00:00:55]} 21. axb3 {[%clk 00:45:06]} {[%emt 00:00:08]} Rfc8
{[%clk 00:38:59]} {[%emt 00:00:45]} 22. Ra1 {[%clk 00:42:35]} {[%emt 00:03:02]}
Ne8 {[%clk 00:36:17]} {[%emt 00:03:12]} 23. Rdc1 {[%clk 00:37:14]} {[%emt
00:05:51]} Nd6 {[%clk 00:32:23]} {[%emt 00:04:23]} 24. Rxa8 {[%clk 00:36:55]}
{[%emt 00:00:51]} Rxa8 {[%clk 00:32:48]} {[%emt 00:00:05]} 25. Bb4 {[%clk
00:37:14]} {[%emt 00:00:10]} Ne4 {[%clk 00:25:25]} {[%emt 00:07:54]} 26. cxd5
{[%clk 00:32:16]} {[%emt 00:05:28]} cxd5 {[%clk 00:25:51]} {[%emt 00:00:04]} 27.
Qc6 {[%clk 00:23:32]} {[%emt 00:09:14]} Qxc6 {[%clk 00:22:53]} {[%emt
00:03:27]} 28. Rxc6 {[%clk 00:23:55]} {[%emt 00:00:07]} Ra2 {[%clk 00:23:20]}
{[%emt 00:00:03]} 29. Rc8+ {[%clk 00:24:13]} {[%emt 00:00:12]} Kf7 {[%clk
00:23:41]} {[%emt 00:00:10]} 30. Bb5 {[%clk 00:24:37]} {[%emt 00:00:05]} Kg6
{[%clk 00:22:34]} {[%emt 00:01:37]} 31. Be1 {[%clk 00:19:03]} {[%emt 00:06:04]}
Ra1 {[%clk 00:11:21]} {[%emt 00:11:45]} 32. Kf1 {[%clk 00:19:21]} {[%emt
00:00:11]} Nd2+ {[%clk 00:11:47]} {[%emt 00:00:05]} 33. Ke2 {[%clk 00:19:33]}
{[%emt 00:00:17]} Nxb3 {[%clk 00:12:14]} {[%emt 00:00:04]} 34. Rc6 {[%clk
00:14:11]} {[%emt 00:05:51]} Rb1 {[%clk 00:08:56]} {[%emt 00:03:48]} 35. Rxb6
{[%clk 00:11:22]} {[%emt 00:03:20]} Bxd4 {[%clk 00:09:10]} {[%emt 00:00:16]} 36.
Rxe6+ {[%clk 00:09:39]} {[%emt 00:02:13]} Kf7 {[%clk 00:09:31]} {[%emt
00:00:08]} 37. Rc6 {[%clk 00:07:05]} {[%emt 00:03:04]} Bf6 {[%clk 00:08:26]}
{[%emt 00:01:35]} 38. Ba6 {[%clk 00:07:20]} {[%emt 00:00:16]} d4 {[%clk
00:05:52]} {[%emt 00:03:04]} 39. Bc4+ {[%clk 00:05:43]} {[%emt 00:02:06]} Ke8
{[%clk 00:06:13]} {[%emt 00:00:09]} 40. Bxb3 {[%clk 00:03:25]} {[%emt
00:02:49]} Rxb3 {[%clk 00:06:38]} {[%emt 00:00:05]} 41. exd4 {[%clk 00:03:34]}
{[%emt 00:00:21]} Bxd4 {[%clk 00:07:03]} {[%emt 00:00:05]} 42. Rc4 {[%clk
00:03:26]} {[%emt 00:00:38]} Bf6 {[%clk 00:06:49]} {[%emt 00:00:44]} 43. Bd2
{[%clk 00:03:33]} {[%emt 00:00:23]} Kf7 {[%clk 00:06:58]} {[%emt 00:00:21]} 44.
h4 {[%clk 00:03:56]} {[%emt 00:00:08]} 1/2-1/2


[ePGN "0.1;DGT LiveChess/2.1"]